[Event "Mitropa Online Cup Open 2021"]
[Site "Hybrid"]
[Date "2021.05.04"]
[Round "5.5"]
[White "Nagy, Gabor"]
[Black "Nayhebaver, Martin"]
[Result "1/2-1/2"]
[ECO "E19"]
[WhiteElo "2511"]
[BlackElo "2485"]
[Annotator "ChessBase"]
[PlyCount "110"]
[EventDate "2021.05.04"]
[EventType "team-tourn"]
[EventCountry "NET"]
[SourceTitle "playchess.com"]
[Source "ChessBase"]
[SourceQuality "1"]
[WhiteTeam "Hungary"]
[BlackTeam "Slovakia"]
[WhiteTeamCountry "HUN"]
[BlackTeamCountry "SVK"]
[TimeControl "40/5400+30:1800+30"]

1. Nf3 {[%emt 0:00:00]} Nf6 {[%emt 0:00:23]} 2. c4 {[%emt 0:00:08]} b6 {[%emt 0:00:48]} 3. g3 {[%emt 0:01:53]} Bb7 {[%emt 0:00:25]} 4. Bg2 {[%emt 0:00:17]} e6 {[%emt 0:00:20]} 5. O-O {[%emt 0:00:57]} Be7 {[%emt 0:00:35]} 6. d4 {[%emt 0:01:41]} O-O {[%emt 0:00:48]} 7. Nc3 {[%emt 0:03:15]} Ne4 {[%emt 0:01:28]} 8. Qc2 {[%emt 0:00:14]} Nxc3 {[%emt 0:01:45]} 9. Qxc3 {[%emt 0:00:08]} c5 {[%emt 0:05:49]} 10. Rd1 {[%emt 0:04:02]} Bf6 {[%emt 0:04:56]} 11. Qc2 {[%emt 0:07:25]} Nc6 {[%emt 0:17:45]} 12. dxc5 {[%emt 0:03:04]} bxc5 {[%emt 0:01:33]} 13. Bf4 {[%emt 0:01:56]} Qb6 {[%emt 0:04:31]} 14. Rxd7 {[%emt 0:08:34]} Nd4 {[%emt 0:03:45]} 15. Nxd4 {[%emt 0:00:56]} Bxg2 {[%emt 0:00:09]} 16. Rd6 {[%emt 0:06:08]} Qb7 {[%emt 0:04:41]} 17. Nb3 {[%emt 0:00:55]} Be7 {[%emt 0:09:30]} 18. Na5 {[%emt 0:10:41]} Qe4 {[%emt 0:04:07]} 19. Qxe4 {[%emt 0:07:18]} Bxe4 {[%emt 0:00:18]} 20. Rd2 {[%emt 0:00:07]} Rad8 {[%emt 0:07:05]} 21. f3 {[%emt 0:01:57]} Rxd2 {[%emt 0:03:24]} 22. Bxd2 {[%emt 0:00:09]} Ba8 {[%emt 0:00:09]} 23. Be3 {[%emt 0:02:11]} Rc8 {[%emt 0:11:11]} 24. Rd1 {[%emt 0:00:29]} Bf6 {[%emt 0:06:18]} 25. Rd2 {[%emt 0:01:20]} Bd8 {[%emt 0:03:29]} 26. Nb3 {[%emt 0:00:23]} Bb6 {[%emt 0:00:08]} 27. a4 {[%emt 0:04:20]} a5 {[%emt 0:00:53]} 28. Rd6 {[%emt 0:02:01]} Bc6 {[%emt 0:00:22]} 29. Nxc5 {[%emt 0:07:18]} Bxc5 {[%emt 0:02:08]} 30. Bxc5 {[%emt 0:00:09]} Bxa4 {[%emt 0:00:10]} 31. Bb6 {[%emt 0:00:18]} Kf8 {[%emt 0:00:24]} 32. c5 {[%emt 0:00:50]} Bb5 {[%emt 0:01:19]} 33. Kf2 {[%emt 0:00:36]} a4 {[%emt 0:00:13]} 34. e4 {[%emt 0:00:28]} Ke7 {[%emt 0:00:53]} 35. g4 {[%emt 0:01:57]} Bd7 {[%emt 0:03:43]} 36. f4 {[%emt 0:02:18]} Bb5 {[%emt 0:00:17]} 37. h4 {[%emt 0:00:32]} Ra8 {[%emt 0:01:49]} 38. e5 {[%emt 0:01:27]} Rc8 {[%emt 0:00:32]} 39. f5 {[%emt 0:00:44]} Rc6 {[%emt 0:00:50]} 40. Rd4 {[%emt 0:00:00]} exf5 {[%emt 0:00:00]} 41. gxf5 {[%emt 0:01:35]} Rc8 {[%emt 0:03:28]} 42. Rd6 {[%emt 0:02:31]} Bd7 {[%emt 0:03:56]} 43. f6+ {[%emt 0:00:19]} gxf6 {[%emt 0:00:05]} 44. exf6+ {[%emt 0:00:07]} Ke8 {[%emt 0:00:05]} 45. Rd4 {[%emt 0:05:31]} Rc6 {[%emt 0:00:53]} 46. Rf4 {[%emt 0:00:09]} Re6 {[%emt 0:00:22]} 47. Bc7 {[%emt 0:03:51]} Bc6 {[%emt 0:03:28]} 48. Rf5 {[%emt 0:03:04]} Be4 {[%emt 0:00:57]} 49. Rf4 {[%emt 0:00:06]} Bc6 {[%emt 0:00:39]} 50. h5 {[%emt 0:00:06]} Kd7 {[%emt 0:02:24]} 51. Ba5 {[%emt 0:02:00]} Re5 {[%emt 0:01:04]} 52. Rd4+ {[%emt 0:00:30]} Rd5 {[%emt 0:00:11]} 53. Rxd5+ {[%emt 0:00:26]} Bxd5 {[%emt 0:00:06]} 54. Ke3 {[%emt 0:00:07]} Ke6 {[%emt 0:00:42]} 55. Bc3 {[%emt 0:00:28]} Kf5 {[%emt 0:00:18]} 1/2-1/2

[Event "Mitropa Online Cup Open 2021"]
[Site "Hybrid"]
[Date "2021.05.04"]
[Round "5.5"]
[White "Sahidi, Samir"]
[Black "Csiki, Endre"]
[Result "1-0"]
[ECO "E11"]
[WhiteElo "2406"]
[BlackElo "2310"]
[Annotator "NA"]
[PlyCount "69"]
[EventDate "2021.05.04"]
[EventType "team-tourn"]
[EventCountry "NET"]
[SourceTitle "playchess.com"]
[Source "ChessBase"]
[SourceQuality "1"]
[WhiteTeam "Slovakia"]
[BlackTeam "Hungary"]
[WhiteTeamCountry "SVK"]
[BlackTeamCountry "HUN"]
[TimeControl "40/5400+30:1800+30"]

1. d4 {[%emt 0:00:00]} Nf6 {[%emt 0:00:05]} 2. c4 {[%emt 0:00:17]} e6 {[%emt 0:00:03]} 3. Nf3 {[%emt 0:00:51]} d5 {[%emt 0:00:09]} 4. g3 {[%emt 0:00:54]} Bb4+ {[%emt 0:00:05]} 5. Bd2 {[%emt 0:01:02]} Be7 {[%emt 0:00:05]} 6. Bg2 {[%emt 0:02:37]} O-O {[%emt 0:00:06]} 7. Nc3 {[%emt 0:05:47]} Nbd7 {[%emt 0:02:50]} 8. Qb3 {[%emt 0:04:18]} Nb6 {[%emt 0:03:06]} 9. cxd5 {[%emt 0:03:11]} exd5 {[%emt 0:01:16]} 10. Ne5 {[%emt 0:02:01]} Be6 {[%emt 0:06:49]} 11. Na4 {[%emt 0:06:10]} Qe8 {[%emt 0:22:38]} 12. Nc5 {[%emt 0:04:01]} Bxc5 {[%emt 0:09:01]} 13. dxc5 {[%emt 0:00:39]} d4 {[%emt 0:00:24]} 14. Qc2 {[%emt 0:06:52]} Bd5 {[%emt 0:02:20]} 15. Bxd5 {[%emt 0:01:40]} Nbxd5 {[%emt 0:00:25]} 16. Nf3 {[%emt 0:00:36]} Rd8 {[%emt 0:20:15]} 17. Nxd4 {[%emt 0:02:54]} Ne7 {[%emt 0:01:57]} 18. Bc3 {[%emt 0:04:26]} Ned5 {[%emt 0:06:21]} 19. O-O {[%emt 0:05:42]} Nxc3 {[%emt 0:05:27]} 20. bxc3 {[%emt 0:02:26]} Qe4 {[%emt 0:02:30]} 21. Rac1 {[%emt 0:01:56]} Rd5 {[%emt 0:06:48]} 22. c6 {[%emt 0:06:18]} b6 {[%emt 0:00:47]} 23. Qd2 {[%emt 0:04:59]} Ng4 {[%emt 0:02:15]} 24. Rfd1 {[%emt 0:04:58]} Ne5 {[%emt 0:00:59]} 25. Qf4 {[%emt 0:07:38]} Qxf4 {[%emt 0:02:49]} 26. gxf4 {[%emt 0:00:15]} Nc4 {[%emt 0:00:03]} 27. Nb3 {[%emt 0:03:38]} Rfd8 {[%emt 0:00:23]} 28. Rd4 {[%emt 0:00:30]} Na5 {[%emt 0:00:38]} 29. Nxa5 {[%emt 0:01:09]} bxa5 {[%emt 0:00:49]} 30. Rcd1 {[%emt 0:11:39]} Rxd4 {[%emt 0:00:05]} 31. Rxd4 {[%emt 0:00:07]} Rb8 {[%emt 0:00:23]} 32. Rd7 {[%emt 0:00:13]} g6 {[%emt 0:00:55]} 33. Rxc7 {[%emt 0:00:19]} Rb2 {[%emt 0:00:05]} 34. Rb7 {[%emt 0:00:48]} Rxe2 {[%emt 0:00:13]} 35. c7 {[%emt 0:00:12]} 1-0

[Event "Mitropa Online Cup Open 2021"]
[Site "Hybrid"]
[Date "2021.05.04"]
[Round "6.1"]
[White "Prusikin, Michael"]
[Black "Pechac, Jergus"]
[Result "1/2-1/2"]
[ECO "D10"]
[WhiteElo "2547"]
[BlackElo "2519"]
[Annotator "ChessBase"]
[PlyCount "76"]
[EventDate "2021.05.04"]
[EventType "team-tourn"]
[EventCountry "NET"]
[SourceTitle "playchess.com"]
[Source "ChessBase"]
[SourceQuality "1"]
[WhiteTeam "Germany"]
[BlackTeam "Slovakia"]
[WhiteTeamCountry "GER"]
[BlackTeamCountry "SVK"]
[TimeControl "40/5400+30:1800+30"]

1. d4 {[%emt 0:00:00]} d5 {[%emt 0:00:05]} 2. c4 {[%emt 0:00:05]} c6 {[%emt 0:00:05]} 3. cxd5 {[%emt 0:00:07]} cxd5 {[%emt 0:00:05]} 4. Bg5 {[%emt 0:00:04]} Nc6 {[%emt 0:00:16]} 5. Nc3 {[%emt 0:00:17]} f6 {[%emt 0:00:05]} 6. Bd2 {[%emt 0:06:43]} Nxd4 {[%emt 0:03:28]} 7. e3 {[%emt 0:00:05]} Nf5 {[%emt 0:00:10]} 8. Nf3 {[%emt 0:00:10]} e5 {[%emt 0:01:19]} 9. Qb3 {[%emt 0:01:04]} Nge7 {[%emt 0:00:31]} 10. Bb5+ {[%emt 0:02:30]} Bd7 {[%emt 0:00:12]} 11. Nxd5 {[%emt 0:01:55]} Nxd5 {[%emt 0:00:09]} 12. Qxd5 {[%emt 0:00:11]} Bxb5 {[%emt 0:00:05]} 13. Qxb5+ {[%emt 0:00:08]} Qd7 {[%emt 0:00:05]} 14. Qxd7+ {[%emt 0:03:52]} Kxd7 {[%emt 0:00:48]} 15. Bc3 {[%emt 0:15:01]} Ke6 {[%emt 0:01:07]} 16. Ke2 {[%emt 0:00:37]} Be7 {[%emt 0:01:24]} 17. Nd2 {[%emt 0:02:24]} h5 {[%emt 0:01:21]} 18. h3 {[%emt 0:05:58]} Rac8 {[%emt 0:02:15]} 19. Rac1 {[%emt 0:02:17]} Rc6 {[%emt 0:01:30]} 20. Ne4 {[%emt 0:01:41]} Rc4 {[%emt 0:01:29]} 21. Nd2 {[%emt 0:02:46]} Ra4 {[%emt 0:02:30]} 22. a3 {[%emt 0:00:36]} g5 {[%emt 0:01:12]} 23. g4 {[%emt 0:08:13]} Nh4 {[%emt 0:06:51]} 24. Bb4 {[%emt 0:08:25]} Bxb4 {[%emt 0:14:21]} 25. Rc4 {[%emt 0:00:17]} Ng6 {[%emt 0:12:39]} 26. Rd1 {[%emt 0:04:53]} hxg4 {[%emt 0:03:18]} 27. hxg4 {[%emt 0:00:17]} b5 {[%emt 0:04:28]} 28. Rxb4 {[%emt 0:00:53]} Rxb4 {[%emt 0:00:08]} 29. axb4 {[%emt 0:00:04]} Rh4 {[%emt 0:00:09]} 30. Kf3 {[%emt 0:03:48]} e4+ {[%emt 0:02:59]} 31. Nxe4 {[%emt 0:01:02]} Ne5+ {[%emt 0:00:35]} 32. Ke2 {[%emt 0:00:26]} Rxg4 {[%emt 0:00:06]} 33. Rd4 {[%emt 0:06:02]} Rh4 {[%emt 0:04:55]} 34. Nc5+ {[%emt 0:02:45]} Kf5 {[%emt 0:01:58]} 35. e4+ {[%emt 0:01:15]} Kg6 {[%emt 0:02:29]} 36. Rd6 {[%emt 0:04:12]} Rh1 {[%emt 0:03:46]} 37. Nd3 {[%emt 0:08:03]} Nxd3 {[%emt 0:02:07]} 38. Rxd3 {[%emt 0:00:05]} Rb1 {[%emt 0:00:22]} 1/2-1/2

[Event "Mitropa Online Cup Open 2021"]
[Site "Hybrid"]
[Date "2021.05.04"]
[Round "6.1"]
[White "Koellner, Ruben Gideon"]
[Black "Sahidi, Samir"]
[Result "0-1"]
[ECO "C54"]
[WhiteElo "2412"]
[BlackElo "2406"]
[Annotator "NA"]
[PlyCount "82"]
[EventDate "2021.05.04"]
[EventType "team-tourn"]
[EventCountry "NET"]
[SourceTitle "playchess.com"]
[Source "ChessBase"]
[SourceQuality "1"]
[WhiteTeam "Germany"]
[BlackTeam "Slovakia"]
[WhiteTeamCountry "GER"]
[BlackTeamCountry "SVK"]
[TimeControl "40/5400+30:1800+30"]

1. e4 {[%emt 0:00:00]} e5 {[%emt 0:00:20]} 2. Nf3 {[%emt 0:00:07]} Nc6 {[%emt 0:00:12]} 3. Bc4 {[%emt 0:00:04]} Bc5 {[%emt 0:00:08]} 4. c3 {[%emt 0:00:06]} Nf6 {[%emt 0:00:19]} 5. d3 {[%emt 0:00:05]} a6 {[%emt 0:02:37]} 6. Nbd2 {[%emt 0:01:15]} O-O {[%emt 0:03:34]} 7. O-O {[%emt 0:00:19]} d6 {[%emt 0:01:34]} 8. Bb3 {[%emt 0:00:09]} Ba7 {[%emt 0:02:27]} 9. h3 {[%emt 0:00:07]} Ne7 {[%emt 0:03:49]} 10. Nh4 {[%emt 0:05:13]} c6 {[%emt 0:11:41]} 11. Re1 {[%emt 0:07:37]} Be6 {[%emt 0:01:06]} 12. Nf1 {[%emt 0:02:26]} d5 {[%emt 0:07:07]} 13. Qf3 {[%emt 0:03:59]} Qd6 {[%emt 0:04:20]} 14. Ng3 {[%emt 0:06:17]} Nd7 {[%emt 0:03:07]} 15. Bc2 {[%emt 0:12:12]} b5 {[%emt 0:05:17]} 16. Be3 {[%emt 0:03:20]} d4 {[%emt 0:06:31]} 17. Bd2 {[%emt 0:01:45]} a5 {[%emt 0:04:58]} 18. Nhf5 {[%emt 0:07:38]} Nxf5 {[%emt 0:04:18]} 19. exf5 {[%emt 0:00:49]} Bd5 {[%emt 0:00:14]} 20. Qg4 {[%emt 0:00:12]} Nf6 {[%emt 0:01:05]} 21. Qh4 {[%emt 0:01:09]} dxc3 {[%emt 0:01:32]} 22. bxc3 {[%emt 0:02:54]} Rfe8 {[%emt 0:05:26]} 23. Re2 {[%emt 0:15:24]} a4 {[%emt 0:06:11]} 24. c4 {[%emt 0:12:29]} Bd4 {[%emt 0:02:37]} 25. Rae1 {[%emt 0:03:38]} bxc4 {[%emt 0:00:21]} 26. Bg5 {[%emt 0:00:07]} Kf8 {[%emt 0:03:44]} 27. Bxf6 {[%emt 0:03:20]} Qxf6 {[%emt 0:00:18]} 28. Qg4 {[%emt 0:05:10]} c3 {[%emt 0:02:46]} 29. h4 {[%emt 0:02:55]} Qh6 {[%emt 0:02:13]} 30. Kh2 {[%emt 0:01:20]} Qf4 {[%emt 0:01:29]} 31. Qxf4 {[%emt 0:00:40]} exf4 {[%emt 0:00:08]} 32. Rxe8+ {[%emt 0:00:13]} Rxe8 {[%emt 0:00:09]} 33. Rxe8+ {[%emt 0:00:16]} Kxe8 {[%emt 0:00:07]} 34. Ne2 {[%emt 0:00:03]} Be5 {[%emt 0:01:00]} 35. f3 {[%emt 0:00:40]} a3 {[%emt 0:02:53]} 36. Nc1 {[%emt 0:02:31]} c5 {[%emt 0:01:55]} 37. Nb3 {[%emt 0:00:11]} Bd4 {[%emt 0:00:15]} 38. Kh3 {[%emt 0:00:10]} h5 {[%emt 0:00:54]} 39. g4 {[%emt 0:00:03]} Bxf3 {[%emt 0:00:25]} 40. gxh5 {[%emt 0:00:00]} Ke7 {[%emt 0:00:00]} 41. Na5 {[%emt 0:00:17]} Be2 {[%emt 0:01:58]} 0-1

[Event "Mitropa Online Cup Open 2021"]
[Site "Hybrid"]
[Date "2021.05.04"]
[Round "6.1"]
[White "Haring, Filip"]
[Black "Krastev, Alexander"]
[Result "1-0"]
[ECO "C45"]
[WhiteElo "2376"]
[BlackElo "2367"]
[Annotator "NA"]
[PlyCount "75"]
[EventDate "2021.05.04"]
[EventType "team-tourn"]
[EventCountry "NET"]
[SourceTitle "playchess.com"]
[Source "ChessBase"]
[SourceQuality "1"]
[WhiteTeam "Slovakia"]
[BlackTeam "Germany"]
[WhiteTeamCountry "SVK"]
[BlackTeamCountry "GER"]
[TimeControl "40/5400+30:1800+30"]

1. e4 {[%emt 0:00:00]} e5 {[%emt 0:01:02]} 2. Nf3 {[%emt 0:00:09]} Nc6 {[%emt 0:00:05]} 3. d4 {[%emt 0:00:08]} exd4 {[%emt 0:00:05]} 4. Nxd4 {[%emt 0:00:09]} Bc5 {[%emt 0:00:56]} 5. Nb3 {[%emt 0:00:17]} Bb6 {[%emt 0:00:33]} 6. Nc3 {[%emt 0:00:08]} Nf6 {[%emt 0:01:22]} 7. Qe2 {[%emt 0:00:19]} a5 {[%emt 0:07:10]} 8. a4 {[%emt 0:09:00]} d6 {[%emt 0:19:45]} 9. Bg5 {[%emt 0:08:32]} h6 {[%emt 0:07:03]} 10. Be3 {[%emt 0:06:52]} Bxe3 {[%emt 0:03:12]} 11. Qxe3 {[%emt 0:00:12]} O-O {[%emt 0:00:35]} 12. O-O-O {[%emt 0:01:35]} Nb4 {[%emt 0:13:58]} 13. f3 {[%emt 0:06:17]} Nd7 {[%emt 0:05:20]} 14. g4 {[%emt 0:09:29]} Qg5 {[%emt 0:09:46]} 15. f4 {[%emt 0:02:17]} Qxg4 {[%emt 0:00:05]} 16. h4 {[%emt 0:03:15]} f5 {[%emt 0:06:00]} 17. Bc4+ {[%emt 0:10:41]} Kh8 {[%emt 0:00:41]} 18. Rdg1 {[%emt 0:06:52]} Qh5 {[%emt 0:00:09]} 19. Qg3 {[%emt 0:00:46]} Qg4 {[%emt 0:02:28]} 20. Qf2 {[%emt 0:00:20]} Qh5 {[%emt 0:00:23]} 21. Qg2 {[%emt 0:01:37]} Qg4 {[%emt 0:00:18]} 22. Qf1 {[%emt 0:02:27]} Qh5 {[%emt 0:01:38]} 23. Rg5 {[%emt 0:02:54]} Qe8 {[%emt 0:00:04]} 24. Rhg1 {[%emt 0:02:30]} fxe4 {[%emt 0:07:49]} 25. Rxg7 {[%emt 0:01:08]} Nf6 {[%emt 0:00:05]} 26. Qg2 {[%emt 0:02:59]} Bg4 {[%emt 0:03:17]} 27. Rxg4 {[%emt 0:00:20]} Nxg4 {[%emt 0:00:03]} 28. Qxg4 {[%emt 0:00:05]} Qe7 {[%emt 0:00:03]} 29. Nd4 {[%emt 0:06:09]} Qf6 {[%emt 0:03:30]} 30. Ne6 {[%emt 0:03:55]} Rg8 {[%emt 0:01:24]} 31. Ng5 {[%emt 0:00:06]} d5 {[%emt 0:04:20]} 32. Bxd5 {[%emt 0:03:02]} Nxd5 {[%emt 0:01:26]} 33. Nxd5 {[%emt 0:00:08]} Qf8 {[%emt 0:00:01]} 34. Qh5 {[%emt 0:04:50]} c6 {[%emt 0:01:06]} 35. Nf7+ {[%emt 0:00:49]} Qxf7 {[%emt 0:00:18]} 36. Qxh6+ {[%emt 0:00:04]} Qh7 {[%emt 0:00:08]} 37. Qxh7+ {[%emt 0:00:19]} Kxh7 {[%emt 0:00:02]} 38. Nf6+ {[%emt 0:00:05]} 1-0

[Event "Mitropa Online Cup Open 2021"]
[Site "Hybrid"]
[Date "2021.05.04"]
[Round "6.2"]
[White "Antal, Gergely"]
[Black "Babula, Vlastimil"]
[Result "0-1"]
[ECO "B40"]
[WhiteElo "2572"]
[BlackElo "2559"]
[Annotator "ChessBase"]
[PlyCount "88"]
[EventDate "2021.05.04"]
[EventType "team-tourn"]
[EventCountry "NET"]
[SourceTitle "playchess.com"]
[Source "ChessBase"]
[SourceQuality "1"]
[WhiteTeam "Hungary"]
[BlackTeam "Czech Republic"]
[WhiteTeamCountry "HUN"]
[BlackTeamCountry "CZE"]
[TimeControl "40/5400+30:1800+30"]

1. e4 {[%emt 0:00:00]} c5 {[%emt 0:00:09]} 2. Nf3 {[%emt 0:00:09]} e6 {[%emt 0:00:14]} 3. b3 {[%emt 0:00:41]} a6 {[%emt 0:00:56]} 4. c4 {[%emt 0:01:09]} Nc6 {[%emt 0:00:46]} 5. Bb2 {[%emt 0:00:54]} Nf6 {[%emt 0:02:49]} 6. e5 {[%emt 0:12:02]} Ng4 {[%emt 0:00:29]} 7. h3 {[%emt 0:03:15]} Nh6 {[%emt 0:00:12]} 8. g4 {[%emt 0:07:26]} d5 {[%emt 0:08:05]} 9. exd6 {[%emt 0:00:33]} Qxd6 {[%emt 0:01:28]} 10. Bg2 {[%emt 0:02:37]} Bd7 {[%emt 0:04:20]} 11. O-O {[%emt 0:23:21]} O-O-O {[%emt 0:08:46]} 12. Qe2 {[%emt 0:03:03]} f6 {[%emt 0:05:07]} 13. Nc3 {[%emt 0:05:42]} e5 {[%emt 0:13:42]} 14. Nd5 {[%emt 0:03:19]} Nf7 {[%emt 0:04:22]} 15. b4 {[%emt 0:02:23]} h5 {[%emt 0:06:25]} 16. Nb6+ {[%emt 0:03:19]} Kb8 {[%emt 0:03:18]} 17. bxc5 {[%emt 0:00:12]} Qe6 {[%emt 0:03:49]} 18. Nxd7+ {[%emt 0:00:41]} Qxd7 {[%emt 0:00:39]} 19. gxh5 {[%emt 0:02:28]} Bxc5 {[%emt 0:01:28]} 20. Nh4 {[%emt 0:07:30]} Qxd2 {[%emt 0:03:02]} 21. Qg4 {[%emt 0:02:37]} Qg5 {[%emt 0:12:05]} 22. Rab1 {[%emt 0:13:22]} Rxh5 {[%emt 0:05:55]} 23. Qe6 {[%emt 0:00:31]} Nd6 {[%emt 0:02:25]} 24. Nf3 {[%emt 0:01:49]} Qf5 {[%emt 0:03:43]} 25. Qxf5 {[%emt 0:00:44]} Rxf5 {[%emt 0:01:40]} 26. Nh4 {[%emt 0:01:42]} Rh5 {[%emt 0:00:28]} 27. Bxc6 {[%emt 0:00:11]} Rxh4 {[%emt 0:00:16]} 28. Bg2 {[%emt 0:00:35]} Nxc4 {[%emt 0:01:25]} 29. Bxe5+ {[%emt 0:01:17]} fxe5 {[%emt 0:01:44]} 30. Rxb7+ {[%emt 0:00:03]} Kc8 {[%emt 0:00:04]} 31. Rc1 {[%emt 0:00:44]} e4 {[%emt 0:01:40]} 32. Rxg7 {[%emt 0:01:03]} e3 {[%emt 0:00:45]} 33. Bf1 {[%emt 0:00:18]} exf2+ {[%emt 0:00:10]} 34. Kh2 {[%emt 0:00:41]} Rdd4 {[%emt 0:00:28]} 35. Kg3 {[%emt 0:00:30]} Kd8 {[%emt 0:00:52]} 36. Rg4 {[%emt 0:00:29]} Rhxg4+ {[%emt 0:01:53]} 37. hxg4 {[%emt 0:00:02]} Nd2 {[%emt 0:00:30]} 38. Bxa6 {[%emt 0:00:16]} Bb6 {[%emt 0:00:53]} 39. Rc6 {[%emt 0:01:09]} f1=Q {[%emt 0:01:24]} 40. Bxf1 {[%emt 0:00:00]} Nxf1+ {[%emt 0:00:00]} 41. Kh4 {[%emt 0:00:57]} Bc7 {[%emt 0:00:44]} 42. Kh5 {[%emt 0:00:30]} Ng3+ {[%emt 0:00:31]} 43. Kg5 {[%emt 0:00:04]} Kd7 {[%emt 0:01:19]} 44. Rc2 {[%emt 0:00:04]} Bd8+ {[%emt 0:00:30]} 0-1

[Event "Mitropa Online Cup Open 2021"]
[Site "Hybrid"]
[Date "2021.05.04"]
[Round "6.2"]
[White "Krejci, Jan"]
[Black "Mihok, Oliver"]
[Result "1/2-1/2"]
[ECO "A39"]
[WhiteElo "2540"]
[BlackElo "2547"]
[Annotator "ChessBase"]
[PlyCount "81"]
[EventDate "2021.05.04"]
[EventType "team-tourn"]
[EventCountry "NET"]
[SourceTitle "playchess.com"]
[Source "ChessBase"]
[SourceQuality "1"]
[WhiteTeam "Czech Republic"]
[BlackTeam "Hungary"]
[WhiteTeamCountry "CZE"]
[BlackTeamCountry "HUN"]
[TimeControl "40/5400+30:1800+30"]

1. c4 {[%emt 0:00:00]} Nf6 {[%emt 0:00:34]} 2. Nc3 {[%emt 0:00:15]} g6 {[%emt 0:00:28]} 3. g3 {[%emt 0:00:05]} Bg7 {[%emt 0:00:59]} 4. Bg2 {[%emt 0:00:05]} c5 {[%emt 0:02:04]} 5. Nf3 {[%emt 0:01:05]} Nc6 {[%emt 0:00:42]} 6. d4 {[%emt 0:00:28]} cxd4 {[%emt 0:00:05]} 7. Nxd4 {[%emt 0:00:05]} O-O {[%emt 0:00:21]} 8. O-O {[%emt 0:00:09]} Nxd4 {[%emt 0:00:08]} 9. Qxd4 {[%emt 0:00:07]} d6 {[%emt 0:00:07]} 10. Qd3 {[%emt 0:00:02]} a6 {[%emt 0:00:15]} 11. Bg5 {[%emt 0:06:58]} Rb8 {[%emt 0:05:52]} 12. a4 {[%emt 0:09:42]} Be6 {[%emt 0:18:54]} 13. b3 {[%emt 0:06:21]} Re8 {[%emt 0:05:59]} 14. Rac1 {[%emt 0:03:05]} Qa5 {[%emt 0:02:01]} 15. Bd2 {[%emt 0:11:59]} Qh5 {[%emt 0:05:31]} 16. Nd5 {[%emt 0:01:29]} Nxd5 {[%emt 0:09:46]} 17. cxd5 {[%emt 0:02:25]} Bh3 {[%emt 0:01:59]} 18. Rc7 {[%emt 0:06:54]} Bxg2 {[%emt 0:01:23]} 19. Kxg2 {[%emt 0:00:13]} e6 {[%emt 0:04:47]} 20. dxe6 {[%emt 0:06:19]} Rxe6 {[%emt 0:00:06]} 21. Qf3 {[%emt 0:03:36]} Qxf3+ {[%emt 0:00:44]} 22. Kxf3 {[%emt 0:00:22]} Bd4 {[%emt 0:06:46]} 23. Bf4 {[%emt 0:07:25]} Be5 {[%emt 0:02:57]} 24. Be3 {[%emt 0:07:00]} b5 {[%emt 0:02:34]} 25. Rfc1 {[%emt 0:04:32]} bxa4 {[%emt 0:02:21]} 26. bxa4 {[%emt 0:00:38]} Kg7 {[%emt 0:03:52]} 27. R1c6 {[%emt 0:02:02]} Rf6+ {[%emt 0:03:49]} 28. Kg2 {[%emt 0:00:40]} Rb2 {[%emt 0:04:38]} 29. Rxa6 {[%emt 0:02:31]} Rxe2 {[%emt 0:00:09]} 30. Rd7 {[%emt 0:00:18]} Ra2 {[%emt 0:01:52]} 31. Ra8 {[%emt 0:01:35]} g5 {[%emt 0:06:57]} 32. a5 {[%emt 0:03:43]} g4 {[%emt 0:00:34]} 33. Rdd8 {[%emt 0:00:51]} Rf3 {[%emt 0:01:04]} 34. Bb6 {[%emt 0:01:59]} Rb3 {[%emt 0:01:32]} 35. Rg8+ {[%emt 0:02:53]} Kf6 {[%emt 0:00:10]} 36. Ra7 {[%emt 0:00:30]} h5 {[%emt 0:01:08]} 37. Bd8+ {[%emt 0:03:14]} Ke6 {[%emt 0:00:26]} 38. Re7+ {[%emt 0:00:05]} Kd5 {[%emt 0:00:07]} 39. Rxf7 {[%emt 0:00:06]} Rb1 {[%emt 0:03:24]} 40. h3 {[%emt 0:00:00]} Raa1 {[%emt 0:00:00]} 41. hxg4 {[%emt 0:05:08]} 1/2-1/2